Cogmind - Beta 9.3 --- EXPLORER MODE // 2019.12.22 @ 14:22:30 // Winter2019/RPGLIKE Player: ApolliniaD Result: Assimilated 0b10! Performance ------------- Evolutions (9) 4500 Regions Visited (32) 6400 Robots Destroyed (650) 3250 Value Destroyed (36088) 36088 Prototype IDs (251) 5020 Alien Tech Used (0) 0 Bonus (41621) 41621 TOTAL SCORE: 96879 Bonus ------- Triggered High Security 1000 High Alert Combat Kills 20498 Follower Combat Kills 124 Entered Garrisons 600 Used RIF Installer 1500 Network Hubs Disabled 800 Aligned with FarCom 300 Met Data Miner 300 Used Data Conduit 3000 Met R17 at Research 2000 Pursued by Intercept 1500 Met Sigix 2000 Destroyed MAIN.C Guards 500 Met MAIN.C 5000 Used 0b10 Conduit 2000 Win 3000 Friendly Fire -2501 Cogmind --------- Core Integrity 650/650 Matter 300/300 Energy 996/1000 System Corruption 0% Temperature Cool (0) Movement Flying (20) Location 0b10 Command Parts ------- > --- POWER (1) -------- (None) > --- PROPULSION (1) --- Experimental Q-thruster > --- UTILITY (18) ----- Experimental Signal Interpreter Experimental Terrain Scanner Makeshift Salvage Targeting Computer Advanced Launcher Guidance Computer Experimental Target Analyzer Experimental Core Analyzer Experimental Armor Integrity Analyzer Advanced Particle Accelerator Experimental Weapon Cycler Advanced Reaction Control System Experimental Phase Shifter Experimental Utility Shielding Zionite Weapon Casing 8R-AWN's Armor/TH 8R-AWN's Armor/EX AEGIS Remote Shield > --- WEAPON (6) ------- EMDS Improved Potential Cannon Linked Autogun > --- INVENTORY (30) --- Protomatter-99 Protomatter-62 Immobilizer 8R-AWN's Boregun 99-TNT's Nukerbomber Advanced Remote Datajack Greatsword Peak State ------------ > --- POWER ------------ (None) > --- PROPULSION ------- Experimental Q-thruster > --- UTILITY ---------- Experimental Signal Interpreter Experimental Terrain Scanner Makeshift Salvage Targeting Computer Advanced Launcher Guidance Computer Experimental Target Analyzer Experimental Core Analyzer Experimental Armor Integrity Analyzer Advanced Particle Accelerator Experimental Weapon Cycler Advanced Reaction Control System Experimental Phase Shifter Experimental Utility Shielding Zionite Weapon Casing 8R-AWN's Armor/TH 8R-AWN's Armor/EX AEGIS Remote Shield > --- WEAPON ----------- AWS/EX-DEC EMDS Improved Potential Cannon > --- INVENTORY -------- Protomatter Protomatter Immobilizer Linked Autogun 8R-AWN's Boregun 99-TNT's Nukerbomber Improved Remote Datajack Greatsword [Rating: 237] Favorites ----------- Power None Propulsion Experimental Cesium-ion Thruster Flight Unit Experimental Cesium-ion Thruster Utility Experimental ECM Suite Device Experimental ECM Suite Processor Experimental Signal Interpreter Protection 8R-AWN's Armor/TH Weapon Arc Projector Energy Gun Arc Projector Energy Cannon Beam Cannon Ballistic Gun Linked Autogun Ballistic Cannon AWS/Autocannon Launcher 99-TNT's Nukerbomber Special Weapon Remote Datajack Slashing Weapon Greatsword Build | -11 -10 -10 -10 -9 -8 -7 -7 -7 -7 -6 -6 -6 -6 -6 -6 -5 -5 -5 -5 -5 -5 -4 -4 -4 -4 -3 -3 -3 -2 -2 -1 -1 ------- Run | Scr Mat Min Exi Min Mat Fac Low Low Dat Pro Fac Low Low Zio Dee Pro Fac Ext Cet Arc Hub Fac Gar Fac Gar Res Tes Gar Res Qua Acc Com Slots Evolved 22 | 22 . . . . . . . . . . . . . . . . . . . . . . . . . . . . . . . . Power . | . . . . . . . . . . . . . . . . . . . . . . . . . . . . . . . . . Propulsion . | . . . . . . . . . . . . . . . . . . . . . . . . . . . . . . . . . Utility 17 | 17 . . . . . . . . . . . . . . . . . . . . . . . . . . . . . . . . Weapon 5 | 5 . . . . . . . . . . . . . . . . . . . . . . . . . . . . . . . . Parts Attached 95 | 5 5 3 7 2 3 5 3 6 5 . 10 . . 13 3 . 3 . . . . . . . . 7 10 . 3 . . 2 Power . | . . . . . . . . . . . . . . . . . . . . . . . . . . . . . . . . . Engine . | . . . . . . . . . . . . . . . . . . . . . . . . . . . . . . . . . Core . | . . . . . . . . . . . . . . . . . . . . . . . . . . . . . . . . . Reactor . | . . . . . . . . . . . . . . . . . . . . . . . . . . . . . . . . . Propulsion 6 | . 1 . . 1 . . . . . . 1 . . . . . . . . . . . . . . 3 . . . . . . Treads . | . . . . . . . . . . . . . . . . . . . . . . . . . . . . . . . . . Leg . | . . . . . . . . . . . . . . . . . . . . . . . . . . . . . . . . . Wheel . | . . . . . . . . . . . . . . . . . . . . . . . . . . . . . . . . . Hover . | . . . . . . . . . . . . . . . . . . . . . . . . . . . . . . . . . Flight 6 | . 1 . . 1 . . . . . . 1 . . . . . . . . . . . . . . 3 . . . . . . Utility 36 | 2 . 2 3 . . 5 . 2 . . 6 . . 5 2 . 2 . . . . . . . . 2 2 . 3 . . . Device 18 | . . 1 1 . . 2 . 1 . . 6 . . 2 . . . . . . . . . . . 1 1 . 3 . . . Storage . | . . . . . . . . . . . . . . . . . . . . . . . . . . . . . . . . . Processor 9 | . . . . . . 2 . 1 . . . . . 3 . . 2 . . . . . . . . 1 . . . . . . Hackware . | . . . . . . . . . . . . . . . . . . . . . . . . . . . . . . . . . Protection 9 | 2 . 1 2 . . 1 . . . . . . . . 2 . . . . . . . . . . . 1 . . . . . Artifact . | . . . . . . . . . . . . . . . . . . . . . . . . . . . . . . . . . Weapon 53 | 3 4 1 4 1 3 . 3 4 5 . 3 . . 8 1 . 1 . . . . . . . . 2 8 . . . . 2 Energy Gun 15 | 3 . . 1 . 1 . 3 2 . . 1 . . 2 1 . . . . . . . . . . . 1 . . . . . Energy Cannon 9 | . 3 . 1 . . . . . . . . . . . . . . . . . . . . . . 1 4 . . . . . Ballistic Gun 10 | . . . 1 . 1 . . . . . 1 . . 3 . . 1 . . . . . . . . . 2 . . . . 1 Ballistic Cannon 7 | . 1 . 1 1 . . . 1 3 . . . . . . . . . . . . . . . . . . . . . . . Launcher 4 | . . 1 . . 1 . . . . . . . . 1 . . . . . . . . . . . . . . . . . 1 Special Weapon 4 | . . . . . . . . . 1 . . . . 1 . . . . . . . . . . . 1 1 . . . . . Impact Weapon . | . . . . . . . . . . . . . . . . . . . . . . . . . . . . . . . . . Slashing Weapon 4 | . . . . . . . . 1 1 . 1 . . 1 . . . . . . . . . . . . . . . . . . Piercing Weapon . | . . . . . . . . . . . . . . . . . . . . . . . . . . . . . . . . . Special Melee Weapon . | . . . . . . . . . . . . . . . . . . . . . . . . . . . . . . . . . Unidentified Prototypes 13 | . . . 3 . 2 . . . . . . . . 1 2 . . . . . . . . . . 1 4 . . . . . Parts Lost . | . . . . . . . . . . . . . . . . . . . . . . . . . . . . . . . . . Power . | . . . . . . . . . . . . . . . . . . . . . . . . . . . . . . . . . Propulsion . | . . . . . . . . . . . . . . . . . . . . . . . . . . . . . . . . . Utility . | . . . . . . . . . . . . . . . . . . . . . . . . . . . . . . . . . Weapon . | . . . . . . . . . . . . . . . . . . . . . . . . . . . . . . . . . Highest Loss Streak . | . . . . . . . . . . . . . . . . . . . . . . . . . . . . . . . . . Average Slot Usage (%) 55 | . 25 39 21 18 22 28 47 52 53 53 60 69 69 73 75 76 76 76 76 76 76 76 76 76 76 76 75 76 74 76 76 76 Flight 2 | . 1 3 1 2 3 3 3 3 3 3 3 3 3 3 3 3 3 3 3 3 3 3 3 3 3 3 3 3 3 3 3 3 Device 16 | . . 2 1 3 3 4 11 11 11 11 21 30 30 30 28 26 26 26 26 26 26 26 26 26 26 24 23 23 20 23 23 23 Processor 11 | . . . . . . 1 7 10 11 11 11 11 11 15 19 19 19 19 19 19 19 19 19 19 19 20 23 23 23 23 23 23 Protection 11 | . 7 9 6 7 7 9 11 11 11 11 11 11 11 11 12 15 15 15 15 15 15 15 15 15 15 15 14 15 15 15 15 15 Energy Gun 3 | . 9 7 2 . . . 7 10 11 11 6 3 3 . 3 7 3 3 3 3 3 3 3 3 3 3 3 3 3 3 3 . Energy Cannon 1 | . 4 11 5 . . . . . . . . . . . . . . . . . . . . . . . 3 7 7 7 7 7 Ballistic Gun 1 | . . . . . 2 3 1 . . . . 3 3 2 2 . 3 3 3 3 3 3 3 3 3 3 2 . . . . 2 Ballistic Cannon 1 | . 1 2 . 2 3 3 3 3 1 3 3 3 3 2 . . . . . . . . . . . . . . . . . . Naked Turns 66 | . . . 66 . . . . . . . . . . . . . . . . . . . . . . . . . . . . . Heaviest Build 146 | 8 19 24 61 103 109 112 118 118 118 118 134 134 134 146 96 95 101 101 101 101 101 101 101 101 101 101 122 122 125 122 122 124 Greatest Support 511 | 503 504 504 504 504 504 504 504 504 504 504 507 507 507 507 507 507 507 507 507 507 507 507 507 507 507 511 508 508 508 508 508 508 Greatest Overweight (x) . | . . . . . . . . . . . . . . . . . . . . . . . . . . . . . . . . . Average Overweight (x) . | . . . . . . . . . . . . . . . . . . . . . . . . . . . . . . . . . Largest Inventory Capacity 30 | 30 30 30 30 30 30 30 30 30 30 30 30 30 30 30 30 30 30 30 30 30 30 30 30 30 30 30 30 30 30 30 30 30 Average Capacity 30 | 30 30 30 30 30 30 30 30 30 30 30 30 30 30 30 30 30 30 30 30 30 30 30 30 30 30 30 30 30 30 30 30 30 Most Carried 19 | . 1 3 12 12 13 14 14 14 19 18 19 12 12 18 15 14 15 11 11 11 13 13 14 13 13 15 15 11 12 11 11 11 Average Carried 11 | . . 1 8 8 11 12 11 11 15 16 15 12 12 14 14 14 11 11 11 11 11 13 13 13 13 13 12 11 11 11 11 9 Final Capacity 30 | 30 30 30 30 30 30 30 30 30 30 30 30 30 30 30 30 30 30 30 30 30 30 30 30 30 30 30 30 30 30 30 30 30 Final Carried 18 | . 1 3 12 8 12 13 11 14 16 18 12 12 12 14 14 14 11 11 11 11 13 13 13 13 13 13 11 11 11 11 11 9 Class Distribution -------------------- 84% | Wizard-Scout 6% | Wizard-Ninja 3% | Wizard-Mutant Dominant Class ---------------- Wizard-Gunner | -10/Materials Wizard-Scout | -10/Mines Wizard-Mutant | -10/Exiles Wizard-Scout | -9/Mines Wizard-Scout | -8/Materials Wizard-Scout | -7/Factory Wizard-Scout | -7/Lower Caves Wizard-Scout | -7/Lower Caves Wizard-Scout | -7/Data Miner Wizard-Scout | -6/Proximity Caves Wizard-Scout | -6/Factory Wizard-Scout | -6/Lower Caves Wizard-Scout | -6/Lower Caves Wizard-Ninja | -6/Zion Wizard-Scout | -6/Deep Caves Wizard-Scout | -5/Proximity Caves Wizard-Scout | -5/Factory Wizard-Scout | -5/Extension Wizard-Scout | -5/Cetus Wizard-Scout | -5/Archives Wizard-Scout | -5/Hub_04(d) Wizard-Scout | -4/Factory Wizard-Scout | -4/Garrison Wizard-Scout | -4/Factory Wizard-Scout | -4/Garrison Wizard-Scout | -3/Research Wizard-Scout | -3/Testing Wizard-Scout | -3/Garrison Wizard-Scout | -2/Research Wizard-Scout | -2/Quarantine Wizard-Scout | -1/Access Wizard-Scout | -1/Command Resources | -11 -10 -10 -10 -9 -8 -7 -7 -7 -7 -6 -6 -6 -6 -6 -6 -5 -5 -5 -5 -5 -5 -4 -4 -4 -4 -3 -3 -3 -2 -2 -1 -1 ----------- Run | Scr Mat Min Exi Min Mat Fac Low Low Dat Pro Fac Low Low Zio Dee Pro Fac Ext Cet Arc Hub Fac Gar Fac Gar Res Tes Gar Res Qua Acc Com Matter Collected 74 | 64 . . . . . . . . . . . . . 10 . . . . . . . . . . . . . . . . . . Remotely . | . . . . . . . . . . . . . . . . . . . . . . . . . . . . . . . . . Salvage Created 26619 | 22 93 79 241 94 254 629 241 70 . 281 726 356 . 371 105 136 680 438 33 406 2551 169 595 268 1143 2162 818 1232 987 1693 279 9467 Parts 1406 | 4 3 3 67 7 26 35 7 5 6 12 33 18 . 43 32 13 55 38 5 19 160 8 49 26 70 128 17 48 52 45 9 363 Haulers Intercepted 13 | . 1 . . . 1 1 . . . . 1 . . . . . . . . . 4 . . . . 4 1 . . . . . Recyclers Shooed 6 | . . . . . . 1 . . . . . . . . . . 2 . . . . . . . . 2 . . . . . 1 Parts Field Recycled . | . . . . . . . . . . . . . . . . . . . . . . . . . . . . . . . . . Retrieved Matter . | . . . . . . . . . . . . . . . . . . . . . . . . . . . . . . . . . Parts Self-Destructed . | . . . . . . . . . . . . . . . . . . . . . . . . . . . . . . . . . Prevented . | . . . . . . . . . . . . . . . . . . . . . . . . . . . . . . . . . Kills | -11 -10 -10 -10 -9 -8 -7 -7 -7 -7 -6 -6 -6 -6 -6 -6 -5 -5 -5 -5 -5 -5 -4 -4 -4 -4 -3 -3 -3 -2 -2 -1 -1 ------- Run | Scr Mat Min Exi Min Mat Fac Low Low Dat Pro Fac Low Low Zio Dee Pro Fac Ext Cet Arc Hub Fac Gar Fac Gar Res Tes Gar Res Qua Acc Com Combat Hostiles Destroyed 480 | . . 2 8 8 8 9 6 2 1 5 6 5 1 9 6 11 11 9 8 4 22 1 10 3 22 18 5 23 19 15 4 219 Melee 1 | . . . 1 . . . . . . . . . . . . . . . . . . . . . . . . . . . . . Guns 140 | . . . 1 . 4 2 1 . . 1 1 3 . 1 3 3 11 1 . 4 21 1 10 3 12 17 . 2 3 2 . 33 Cannons 125 | . . 2 6 8 4 7 5 2 . 4 5 2 1 . . . . . . . . . . . . . 1 8 8 7 2 53 AOE 175 | . . . . . . . . . . . . . . 8 3 8 . 8 8 . 1 . . . 10 . . 8 7 5 2 107 Classes Destroyed 31 | 1 3 1 3 1 1 5 . 1 . 1 1 . . 3 1 . . 1 . . . . . . . 1 1 1 . . . 5 Worker 29 | . 1 . . . 1 1 . . . . 1 . . . . . 1 2 . . 11 . . . . 3 2 . . 4 1 1 Builder 10 | . . . . . . . . . . . . . . . . . . 2 . . 2 . . . . 4 . . 2 . . . Tunneler 6 | 1 . . . . . . . . . . . . . . . . . 1 . . 2 . . . . 1 . . 1 . . . Hauler 13 | . 1 . . . 1 1 . . . . 1 . . . . . . . . . 4 . . . . 4 1 . . . . . Recycler 10 | . . . . . . 1 . . . . . . . . . . . 1 . . 2 . . . . 2 . . . 3 . 1 Carrier 3 | . . . . . . . . . . . . . . . . . . . . . . . . . . . . . . . . 3 Mechanic 1 | . . . . . . . . . . . . . . . . . . . . . . . . . . . . . . . . 1 Operator 11 | . . . . . . 2 . . . . 2 . . . . . . 1 . 3 3 . . . . . . . . . . . Turret 1 | . . . 1 . . . . . . . . . . . . . . . . . . . . . . . . . . . . . Watcher 38 | . 1 . . . 1 2 . . . . 3 . . . . . 4 2 2 . 4 1 . 2 . 3 3 1 4 2 1 2 Swarmer 93 | . . . . 6 . . 1 . . . . 1 . . . 5 . 4 . . 5 . 3 . 4 4 . 11 5 . . 44 Saboteur 12 | . . . . . . . . . . . . . . . . . . . . . . . . . . . . . . . . 12 Grunt 136 | . . 2 . 2 5 5 4 . . 1 1 3 1 . . 2 3 . . . 5 1 2 1 12 6 2 4 9 3 2 60 Brawler 15 | . . . . . . . . . . . . . . . . 1 1 . . . . . . . 1 . . . . . . 12 Duelist 15 | . . . . . . . . . . 1 . . . . . . . . . . . . . . 1 1 1 . . . . 11 Protector 6 | . . . . . . 1 . . . . . . . . . . . . . . 1 . . . . . . . . 1 . 3 Researcher 7 | . . . . . . . . . . . . . . . . . . . . . . . . . . . 3 . . 4 . . Sentry 37 | . . . . . 3 1 1 . . 1 2 . . . . 3 3 3 . 4 4 . 2 . 2 2 . 3 1 . . 2 Demolisher 6 | . . . . . . . . . . . . . . . . . . . . . . . . . . . . . . . . 6 Specialist 12 | . . . . . . . . . . . . . . . . . . . . . . . . . . . . 1 . 6 . 5 Hunter 48 | . . . . . . 1 . . . 2 . . . . . . 2 . . . 1 . . . . 3 2 2 2 2 2 29 Programmer 41 | . . . . . . 1 . 1 . . . . . . . . . . . . . . 2 2 1 . . 2 2 . . 30 Behemoth 6 | . . . . . . . . . . . 1 1 . . . . . 2 . . . . 1 . 1 . . . . . . . Cetus Guard 8 | . . . . . . . . . . . . . . . . . . . 8 . . . . . . . . . . . . . M Guard 2 | . . . . . . . . . . . . . . . . . . . . . . . . . . . . . . . . 2 Enhanced Grunt 1 | . . . . . . . . . 1 . . . . . . . . . . . . . . . . . . . . . . . Lightning 9 | . . . . . . . . . . . . . . . . . . . . . 6 . . . . . . . . 3 . . Tracker 3 | . . . . . . . . . . . 1 . . . . . 1 . . . . . . . . 1 . . . . . . Combat Programmer 5 | . . . . . . . . . . . 1 . . . . . 1 . . . . . . . . 1 . . . . . 2 Striker 1 | . . . . . . . . . . . . . . . . . . . . . . . . . . . . . . . . 1 Zionite 29 | . . . 3 . . . . . . . . . . 26 . . . . . . . . . . . . . . . . . . Z-Technician 5 | . . . . . . . . . . . . . . . 5 . . . . . . . . . . . . . . . . . Z-Light 3 | . . . . . . . . . . . . . . . 3 . . . . . . . . . . . . . . . . . Tinkerer 2 | . . . . . . . . . . . . . . 2 . . . . . . . . . . . . . . . . . . Master Thief 1 | . . . . . . . . 1 . . . . . . . . . . . . . . . . . . . . . . . . Assembled 10 | . . . 7 . . . . . . . . . . . 3 . . . . . . . . . . . . . . . . . Thug 1 | . . . . . . . . . . . . . . 1 . . . . . . . . . . . . . . . . . . Savage 3 | . . . . . . . . . . . . . . 3 . . . . . . . . . . . . . . . . . . Butcher 1 | . . . . . . . . . . . . . . 1 . . . . . . . . . . . . . . . . . . Marauder 1 | . . . . . . . . . . . . . . 1 . . . . . . . . . . . . . . . . . . Mutant 1 | . . . . . . . . . . . . . . 1 . . . . . . . . . . . . . . . . . . Revision 1 | . . . . . . . . . . . . . . . . . . . . . . . . . . 1 . . . . . . Best Kill Streak 222 | 1 1 2 8 3 10 5 5 1 1 2 4 3 1 36 5 10 8 10 10 7 57 59 69 3 22 28 10 24 43 18 6 222 Combat Bots Only 214 | . . 2 7 3 7 3 5 1 1 2 2 3 1 6 3 10 5 4 4 4 26 1 11 2 22 14 5 23 38 9 4 214 Max Kills in Single Turn 11 | 1 1 1 3 1 2 1 2 1 1 1 1 1 1 3 3 5 1 3 2 2 3 1 3 1 4 2 1 3 4 3 2 11 Gunslinging . | . . . . . . . . . . . . . . . . . . . . . . . . . . . . . . . . . Exploded 10 | . . . . . . . . . . . . . . 2 3 4 . 3 2 . 1 . . . 3 . . 2 2 2 1 10 Melee 1 | . . . 1 . . . . . . . . . . . . . . . . . . . . . . . . . . . . . Uniques/NPCs Destroyed 5 | . . . 2 . . . . . . . . . . 2 . . . . . . . . . . . 1 . . . . . . EX-DEC (-10/Exiles) 8R-AWN (-10/Exiles) EX-HEX (-10/Exiles) EX-BIN (-10/Exiles) 99-TNT (-6/Zion) Imprinter (-6/Zion) Revision 17++ (-3/Research) Combat | -11 -10 -10 -10 -9 -8 -7 -7 -7 -7 -6 -6 -6 -6 -6 -6 -5 -5 -5 -5 -5 -5 -4 -4 -4 -4 -3 -3 -3 -2 -2 -1 -1 -------- Run | Scr Mat Min Exi Min Mat Fac Low Low Dat Pro Fac Low Low Zio Dee Pro Fac Ext Cet Arc Hub Fac Gar Fac Gar Res Tes Gar Res Qua Acc Com Damage Taken 4356 | 11 14 11 988 43 26 11 30 15 . 11 169 . . 169 . 53 5 17 51 44 578 8 85 24 44 202 11 77 54 22 . 1583 Core 2808 | 9 14 11 866 28 21 8 20 12 . 8 132 . . 121 . 26 . 13 31 33 305 . 42 18 34 93 5 54 24 13 . 867 Absorbed by Shields 1594 | . . . . . . . . . . . . . . . . . . 2 15 . . . . . . . 10 70 48 19 . 1430 Redirected to Core 2185 | 8 . . 340 28 13 8 20 12 . 8 121 . . 121 . 26 . 13 26 33 305 . 42 18 34 93 5 54 24 13 . 820 Core Remaining (%) 99 | 98 . . . 100 100 . . . . 98 . . . . . 100 . . . . 100 . . . 100 . . 100 . 100 . 100 Volleys Fired 1035 | 1 3 6 31 . 19 32 9 3 17 8 11 18 . 49 18 16 46 23 10 31 112 3 42 14 77 106 31 48 17 26 10 198 Largest 6 | 3 6 6 5 . 1 1 1 3 3 3 2 2 . 2 1 2 1 2 1 1 1 1 1 1 2 2 2 2 2 2 1 2 Hottest 295 | 120 295 295 255 . 30 30 30 165 165 165 110 110 . 60 30 110 30 60 30 30 30 30 30 30 60 100 100 270 270 270 200 230 Shots Fired 1536 | 3 12 31 57 11 35 55 17 14 48 35 47 45 2 61 18 35 56 37 10 31 128 10 49 16 104 135 49 65 42 49 11 218 Gun 941 | 3 8 10 22 . 19 32 9 9 45 24 20 36 . 13 14 22 56 28 . 23 128 10 49 16 83 124 18 4 8 7 1 100 Cannon 477 | . 4 20 35 11 16 23 8 5 1 11 27 9 2 4 . . . . . . . . . . . 9 30 61 34 42 10 115 Launcher 112 | . . 1 . . . . . . . . . . . 43 4 13 . 9 10 8 . . . . 21 . . . . . . 3 Special 6 | . . . . . . . . . 2 . . . . 1 . . . . . . . . . . . 2 1 . . . . . Kinetic 770 | . 1 5 23 11 35 55 17 5 1 11 36 27 2 10 14 . 46 19 . 23 112 3 42 14 59 104 12 . . . . 83 Thermal 185 | 2 8 20 27 . . . . . . . . . . . . . . . . . . . . . . . . 13 17 26 10 62 Explosive 112 | . . 1 . . . . . . . . . . . 43 4 13 . 9 10 8 . . . . 21 . . . . . . 3 Electromagnetic 463 | 1 3 5 7 . . . . 9 45 24 11 18 . 7 . 22 10 9 . . 16 7 7 2 24 29 36 52 25 23 1 70 Robot Hit Streak 165 | 2 9 9 35 24 29 12 14 25 24 41 27 28 1 28 22 18 63 44 64 21 53 42 64 24 68 65 30 19 28 53 59 165 Robot Miss Streak 2 | . . 1 1 . 1 1 1 1 1 . 1 1 1 2 1 1 1 1 1 2 2 1 1 1 2 1 1 1 1 . . 2 Penetration Max 2 | . . . 1 . 2 1 . . . . . . . . . . . . . . . . . . . 1 1 1 1 1 . 1 Secondary Targets . | . . . . . . . . . . . . . . . . . . . . . . . . . . . . . . . . . Autonomous 270 | . . . . 11 16 23 8 5 1 11 27 9 2 12 . 6 10 9 . . 16 7 7 2 24 20 6 4 8 7 1 18 Shots Hit Robots 1254 | 2 7 9 39 11 26 35 16 13 45 32 45 36 1 36 15 26 54 32 8 28 118 10 48 16 76 124 28 44 31 34 5 204 Core Hits 1155 | 2 4 5 35 8 11 18 7 3 21 13 19 13 1 52 12 26 44 34 39 27 109 9 28 14 57 95 14 38 28 32 6 331 Critical Hits 289 | . . . 9 1 10 11 2 . . 1 2 . . 7 8 2 10 5 . 7 25 2 13 2 11 22 13 22 13 18 2 71 Critical Kills 102 | . . . 1 1 4 5 1 . . . 1 . . 1 2 1 4 . . . 12 1 2 . 4 6 3 10 5 9 1 28 Critical Parts Destroyed 131 | . . . 5 . 6 5 1 . . 1 . . . 2 3 . 2 2 . . 12 1 8 1 4 10 10 8 8 6 1 35 Melee Attacks 12 | . . . . . . . . 1 1 . 10 . . . . . . . . . . . . . . . . . . . . . Impact . | . . . . . . . . . . . . . . . . . . . . . . . . . . . . . . . . . Slashing 12 | . . . . . . . . 1 1 . 10 . . . . . . . . . . . . . . . . . . . . . Piercing . | . . . . . . . . . . . . . . . . . . . . . . . . . . . . . . . . . Sneak Attacks 1 | . . . . . . . . . 1 . . . . . . . . . . . . . . . . . . . . . . . Combat Hostiles . | . . . . . . . . . . . . . . . . . . . . . . . . . . . . . . . . . Follow-up Attacks . | . . . . . . . . . . . . . . . . . . . . . . . . . . . . . . . . . Damage Inflicted 135452 | 46 104 174 843 1091 1900 2366 896 604 752 1344 3214 1237 204 7177 1878 1589 2298 3219 2390 1571 4728 263 2014 881 3610 4513 1559 5317 5653 7490 2106 62421 Guns 26612 | 12 84 53 311 . 426 401 195 55 307 237 490 493 . 123 272 119 2132 981 . 903 4204 263 2014 881 1911 4212 300 77 317 329 50 4460 Cannons 49532 | . 20 121 444 1091 1474 1965 701 549 112 998 2615 744 204 429 . . . . . . . . . . . 301 1259 3007 3635 5330 1348 23185 Explosions 58977 | 32 . . . . . . . . 174 109 27 . . 6625 1606 1470 166 2238 2390 668 524 . . . 1699 . . 2233 1701 1831 708 34776 Melee 241 | . . . . . . . . . 159 . 82 . . . . . . . . . . . . . . . . . . . . . Ramming 90 | 2 . . 88 . . . . . . . . . . . . . . . . . . . . . . . . . . . . . Kinetic 32263 | . . 19 437 1091 1900 2366 896 549 112 998 3056 1188 204 510 272 . 1868 759 . 903 3966 110 1763 805 1188 3600 64 . . . . 3639 Thermal 65292 | 32 59 128 313 . . . . . 174 109 . . . . 1044 . 166 25 . . 70 . . . . . . 3329 4376 6300 2056 47111 Explosive 21323 | . . . . . . . . . . . 27 . . 6625 562 1470 . 2213 2390 668 . . . . 1699 . . . . . . 5669 Electromagnetic 16243 | 12 45 27 5 . . . . 55 307 237 49 49 . 42 . 119 264 222 . . 692 153 251 76 723 913 1495 1988 1277 1190 50 6002 Impact . | . . . . . . . . . . . . . . . . . . . . . . . . . . . . . . . . . Slashing 241 | . . . . . . . . . 159 . 82 . . . . . . . . . . . . . . . . . . . . . Piercing . | . . . . . . . . . . . . . . . . . . . . . . . . . . . . . . . . . Highest Corruption 2 | 1 1 1 2 . . . . . . . 2 . . . . . . . . . . . . . . . . . . . . . Average Corruption 1 | 1 1 1 1 . . . . . . . 1 . . . . . . . . . . . . . . . . . . . . . Corruption Purged . | . . . . . . . . . . . . . . . . . . . . . . . . . . . . . . . . . Effects 1 | . . . 1 . . . . . . . . . . . . . . . . . . . . . . . . . . . . . Weapon Failures 1 | . . . 1 . . . . . . . . . . . . . . . . . . . . . . . . . . . . . Overload Shots . | . . . . . . . . . . . . . . . . . . . . . . . . . . . . . . . . . Overflow Damage 15707 | . . . 7 64 211 412 170 196 99 275 454 170 . 553 413 67 26 170 . 75 44 . . . 54 . 17 610 1048 1085 637 8850 Projectiles 9089 | . . . . 64 211 412 170 196 . 236 454 170 . 165 . . . . . . . . . . . . 17 157 882 979 579 4397 Explosions 6512 | . . . . . . . . . . 39 . . . 388 413 67 26 170 . 75 44 . . . 54 . . 453 166 106 58 4453 Melee 106 | . . . 7 . . . . . 99 . . . . . . . . . . . . . . . . . . . . . . . Knockbacks 42 | . . . 1 2 . 12 2 3 1 5 10 4 . 2 . . . . . . . . . . . . . . . . . . Impact 1 | . . . 1 . . . . . . . . . . . . . . . . . . . . . . . . . . . . . Kinetic 36 | . . . . 2 . 9 2 3 1 4 9 4 . 2 . . . . . . . . . . . . . . . . . . Secondary 5 | . . . . . . 3 . . . 1 1 . . . . . . . . . . . . . . . . . . . . . Self-Inflicted Damage 317 | 11 . . 39 . . . . . . . . . . . . . . . . . 267 . . . . . . . . . . . Shots 5 | 1 . . . . . . . . . . . . . . . . . . . . 4 . . . . . . . . . . . Rammed 26 | 1 . . 25 . . . . . . . . . . . . . . . . . . . . . . . . . . . . . Targets Rammed 26 | 1 . . 25 . . . . . . . . . . . . . . . . . . . . . . . . . . . . . Kicked . | . . . . . . . . . . . . . . . . . . . . . . . . . . . . . . . . . Crushed . | . . . . . . . . . . . . . . . . . . . . . . . . . . . . . . . . . Highest Temperature . | . . . . . . . . . . . . . . . . . . . . . . . . . . . . . . . . . Average Temperature . | . . . . . . . . . . . . . . . . . . . . . . . . . . . . . . . . . Received Heat Transfer 18 | . . 18 . . . . . . . . . . . . . . . . . . . . . . . . . . . . . . Siege Activations . | . . . . . . . . . . . . . . . . . . . . . . . . . . . . . . . . . Robots Corrupted 42 | . . . . . . . . . 1 . . . . . . . . . . . . . . . . 2 6 7 2 1 . 23 Combat Hostiles 36 | . . . . . . . . . 1 . . . . . . . . . . . . . . . . 1 4 5 1 1 . 23 Parts Fried 138 | . . . . . . . . . 4 4 . . . . . . . 1 . . 2 . 2 . 6 9 21 12 13 15 . 49 Impact Corruptions 4 | . . . 1 . . 1 . . . 1 1 . . . . . . . . . . . . . . . . . . . . . Robots Melted 3 | . . . . . . . . . . . . . . . . . . . . . . . . . . . . . . . . 3 Combat Hostiles 3 | . . . . . . . . . . . . . . . . . . . . . . . . . . . . . . . . 3 Parts Melted 23 | . . . . . . . . . . . . . . . . . . . . . . . . . . . . 2 . 3 1 17 Heat Transferred 32321 | 50 112 235 569 . . . . . 150 100 . . . . . . 100 50 . . 100 . . . . . . 1870 1780 2040 680 24485 Parts Sabotaged . | . . . . . . . . . . . . . . . . . . . . . . . . . . . . . . . . . Parts Stolen . | . . . . . . . . . . . . . . . . . . . . . . . . . . . . . . . . . Parts Stripped . | . . . . . . . . . . . . . . . . . . . . . . . . . . . . . . . . . Power Chain Reactions 10 | 1 . . . . . . . . 1 1 . . . . . . 1 1 . . 2 . . . . . . 1 1 . . 1 Missiles Intercepted . | . . . . . . . . . . . . . . . . . . . . . . . . . . . . . . . . . Alert | -11 -10 -10 -10 -9 -8 -7 -7 -7 -7 -6 -6 -6 -6 -6 -6 -5 -5 -5 -5 -5 -5 -4 -4 -4 -4 -3 -3 -3 -2 -2 -1 -1 ------- Run | Scr Mat Min Exi Min Mat Fac Low Low Dat Pro Fac Low Low Zio Dee Pro Fac Ext Cet Arc Hub Fac Gar Fac Gar Res Tes Gar Res Qua Acc Com Peak Influence 5988 | 5 36 59 . 200 318 531 . . . . 718 . . . . . 529 692 677 386 1813 719 683 366 1617 1771 1376 1654 1661 1629 1201 5988 Average Influence 761 | . 17 31 . 109 147 272 . . . . 229 . . . . . 353 455 538 307 945 680 562 316 867 1227 1186 1212 1253 1152 874 3738 Maximum Alert Level 5 | . . . . 1 1 2 . . . . 3 . . . . . 2 2 2 1 5 3 2 1 5 5 4 5 5 5 4 5 Low Security (%) 32 | 100 100 100 . 75 77 26 . . . . 63 . . . . . 21 17 . 11 14 . . . 6 . . . . . . . Level 1 15 | . . . . 24 22 47 . . . . . . . . . . 41 24 11 88 9 . 18 100 10 . . . . . . . Level 2 18 | . . . . . . 25 . . . . 34 . . . . . 36 57 88 . 5 73 81 . 34 17 . . 2 . . 6 Level 3 8 | . . . . . . . . . . . 1 . . . . . . . . . 37 26 . . 15 16 . 37 11 43 84 5 Level 4 15 | . . . . . . . . . . . . . . . . . . . . . 21 . . . 17 42 100 48 78 55 15 10 Level 5 3 | . . . . . . . . . . . . . . . . . . . . . 12 . . . 16 13 . 14 7 . . 6 High Security 6 | . . . . . . . . . . . . . . . . . . . . . . . . . . 9 . . . . . 71 Max Security . | . . . . . . . . . . . . . . . . . . . . . . . . . . . . . . . . . Squads Dispatched 28 | . . . . 1 . 1 . . . . 5 . . . . . 2 . . . 1 1 . . . 4 . . 3 . 2 8 Investigation 4 | . . . . 1 . 1 . . . . . . . . . . . . . . . . . . . 1 . . 1 . . . Extermination 1 | . . . . . . . . . . . 1 . . . . . . . . . . . . . . . . . . . . . Reinforcement 5 | . . . . . . . . . . . . . . . . . . . . . 1 . . . . 1 . . 2 . 1 . Assault 9 | . . . . . . . . . . . . . . . . . . . . . . . . . . . . . . . 1 8 Garrison 3 | . . . . . . . . . . . 2 . . . . . . . . . . 1 . . . . . . . . . . Intercept 6 | . . . . . . . . . . . 2 . . . . . 2 . . . . . . . . 2 . . . . . . Construction Impeded 1 | . . . . . . . . . . . . . . . . . . . . . . . . . . . . . 1 . . . Haulers Reinforced 1 | . . . . . . . . . . . . . . . . . . . . . . . . . . . . . . . 1 . Stealth | -11 -10 -10 -10 -9 -8 -7 -7 -7 -7 -6 -6 -6 -6 -6 -6 -5 -5 -5 -5 -5 -5 -4 -4 -4 -4 -3 -3 -3 -2 -2 -1 -1 --------- Run | Scr Mat Min Exi Min Mat Fac Low Low Dat Pro Fac Low Low Zio Dee Pro Fac Ext Cet Arc Hub Fac Gar Fac Gar Res Tes Gar Res Qua Acc Com Distress Signals 8 | . . . . . . . . . . . . . . . . . 1 1 . . 2 . . . . 2 . . . . . 2 Communications Jammed . | . . . . . . . . . . . . . . . . . . . . . . . . . . . . . . . . . Distress Signals . | . . . . . . . . . . . . . . . . . . . . . . . . . . . . . . . . . Times Spotted 711 | . 1 1 28 9 11 14 6 2 4 6 12 11 . 51 12 14 16 15 9 8 38 6 14 6 19 27 8 25 21 19 4 294 Peak Tracking Total 81 | . 1 . 11 3 5 3 5 1 4 3 3 2 . 4 3 7 3 3 5 2 5 2 4 2 3 4 4 8 11 6 3 81 Tactical Retreats 55 | . . . 8 . . 2 1 . . . 3 2 . 6 1 2 1 2 . 1 5 1 2 1 2 5 . 2 . . 1 7 Traps | -11 -10 -10 -10 -9 -8 -7 -7 -7 -7 -6 -6 -6 -6 -6 -6 -5 -5 -5 -5 -5 -5 -4 -4 -4 -4 -3 -3 -3 -2 -2 -1 -1 ------- Run | Scr Mat Min Exi Min Mat Fac Low Low Dat Pro Fac Low Low Zio Dee Pro Fac Ext Cet Arc Hub Fac Gar Fac Gar Res Tes Gar Res Qua Acc Com Traps Triggered 13 | . 1 . . . . . . . . . 5 . . . . . . 1 . . 1 . . . 2 . . 1 1 1 . . Indirectly . | . . . . . . . . . . . . . . . . . . . . . . . . . . . . . . . . . Trap Hack Attempts . | . . . . . . . . . . . . . . . . . . . . . . . . . . . . . . . . . Triggered . | . . . . . . . . . . . . . . . . . . . . . . . . . . . . . . . . . Disarmed . | . . . . . . . . . . . . . . . . . . . . . . . . . . . . . . . . . Reprogrammed . | . . . . . . . . . . . . . . . . . . . . . . . . . . . . . . . . . Reused . | . . . . . . . . . . . . . . . . . . . . . . . . . . . . . . . . . Traps Extracted . | . . . . . . . . . . . . . . . . . . . . . . . . . . . . . . . . . Installed . | . . . . . . . . . . . . . . . . . . . . . . . . . . . . . . . . . Triggered . | . . . . . . . . . . . . . . . . . . . . . . . . . . . . . . . . . Machines | -11 -10 -10 -10 -9 -8 -7 -7 -7 -7 -6 -6 -6 -6 -6 -6 -5 -5 -5 -5 -5 -5 -4 -4 -4 -4 -3 -3 -3 -2 -2 -1 -1 ---------- Run | Scr Mat Min Exi Min Mat Fac Low Low Dat Pro Fac Low Low Zio Dee Pro Fac Ext Cet Arc Hub Fac Gar Fac Gar Res Tes Gar Res Qua Acc Com Machines Disabled 108 | . . . 3 . 1 3 . . . . 3 . . 4 3 1 1 5 . 4 30 1 2 . 9 . 8 4 7 13 3 3 Max in Single Turn 13 | . . . 1 . 1 1 . . . . 2 . . 2 1 1 1 3 . 3 13 1 1 . 2 . 2 2 3 4 1 2 Garrison Access 1 | . . . . . . . . . . . . . . . . . . . . . . . . . . . . . . . 1 . Garrison Relay 2 | . . . . . . . . . . . . . . . . . . . . . . . 1 . 1 . . . . . . . Phase Generator 2 | . . . . . . . . . . . . . . . . . . . . . . . . . 1 . . 1 . . . . Network Hub 4 | . . . . . . . . . . . . . . . . . . . . . 4 . . . . . . . . . . . Machines Sabotaged . | . . . . . . . . . . . . . . . . . . . . . . . . . . . . . . . . . Garrisons Compromised . | . . . . . . . . . . . . . . . . . . . . . . . . . . . . . . . . . Overloaded Fab Kills 3 | . . . . . . . . . . . . . . . . . . . . . . . . . . . . . 3 . . . Fab Network Shutdowns 3 | . . . . . . 1 . . . . 1 . . . . . . . . . . . . . . 1 . . . . . . Hacking | -11 -10 -10 -10 -9 -8 -7 -7 -7 -7 -6 -6 -6 -6 -6 -6 -5 -5 -5 -5 -5 -5 -4 -4 -4 -4 -3 -3 -3 -2 -2 -1 -1 --------- Run | Scr Mat Min Exi Min Mat Fac Low Low Dat Pro Fac Low Low Zio Dee Pro Fac Ext Cet Arc Hub Fac Gar Fac Gar Res Tes Gar Res Qua Acc Com Machines Accessed 41 | . 3 . 1 1 1 9 . 2 3 . 6 . . . . . 4 1 1 . . 1 . 1 . 3 2 . 1 1 . . Terminals 19 | . 3 . . . 1 4 . . . . 3 . . . . . 2 1 1 . . . . . . 2 1 . . 1 . . Fabricators 6 | . . . . . . 2 . . . . 1 . . . . . 1 . . . . . . . . 1 . . 1 . . . Repair Stations . | . . . . . . . . . . . . . . . . . . . . . . . . . . . . . . . . . Recycling Units 1 | . . . . . . 1 . . . . . . . . . . . . . . . . . . . . . . . . . . Scanalyzers 3 | . . . . . . 1 . . . . 1 . . . . . 1 . . . . . . . . . . . . . . . Garrison Access 5 | . . . . . . 1 . . . . 1 . . . . . . . . . . 1 . 1 . . 1 . . . . . Total Hacks 145 | . 5 . 1 1 2 37 . 10 8 . 27 . . . . . 18 1 1 . . 1 . 1 . 16 4 . 10 2 . . Successful 145 | . 5 . 1 1 2 37 . 10 8 . 27 . . . . . 18 1 1 . . 1 . 1 . 16 4 . 10 2 . . Failed . | . . . . . . . . . . . . . . . . . . . . . . . . . . . . . . . . . Catastrophic . | . . . . . . . . . . . . . . . . . . . . . . . . . . . . . . . . . Database Lockouts . | . . . . . . . . . . . . . . . . . . . . . . . . . . . . . . . . . Manual 48 | . 5 . 1 . 3 9 . . . . 6 . . 4 . . 5 . . . . . . . . 7 3 . 3 2 . . Terminals 40 | . 5 . . . 2 9 . . . . 6 . . . . . 3 1 1 . . . . . . 8 3 . . 2 . . Fabricators 58 | . . . . . . 21 . . . . 14 . . . . . 5 . . . . . . . . 8 . . 10 . . . Repair Stations . | . . . . . . . . . . . . . . . . . . . . . . . . . . . . . . . . . Recycling Units 3 | . . . . . . 3 . . . . . . . . . . . . . . . . . . . . . . . . . . Scanalyzers 19 | . . . . . . 3 . . . . 6 . . . . . 10 . . . . . . . . . . . . . . . Garrison Access 5 | . . . . . . 1 . . . . 1 . . . . . . . . . . 1 . 1 . . 1 . . . . . Terminal Hacks 56 | . 1 . 1 1 2 9 . 10 8 . 6 . . . . . 3 1 1 . . . . . . 8 3 . . 2 . . Record 11 | . . . . . . . . 9 1 . . . . . . . 1 . . . . . . . . . . . . . . . Part Schematic 13 | . . . . . . 4 . . 3 . . . . . . . . . . . . . . . . 6 . . . . . . Robot Schematic 1 | . . . . . . . . . 1 . . . . . . . . . . . . . . . . . . . . . . . Robot Analysis 1 | . . . . . . 1 . . . . . . . . . . . . . . . . . . . . . . . . . . Prototype ID Bank 7 | . . . . . . 1 . . 3 . 2 . . . . . . . . . . . . . . 1 . . . . . . Open Door 4 | . . . . 1 . . . 1 . . . . . . . . . 1 1 . . . . . . . . . . . . . Level Access Points 5 | . . . . . 1 . . . . . 1 . . . . . 1 . . . . . . . . . 1 . . 1 . . Branch Access Points 8 | . 1 . . . 1 1 . . . . 1 . . . . . 1 . . . . . . . . 1 1 . . 1 . . Emergency Access Points 2 | . . . . . . . . . . . 1 . . . . . . . . . . . . . . . 1 . . . . . Machine Index 1 | . . . . . . 1 . . . . . . . . . . . . . . . . . . . . . . . . . . Zone Layout 2 | . . . . . . 1 . . . . 1 . . . . . . . . . . . . . . . . . . . . . EX-Prototype ID Bank 1 | . . . 1 . . . . . . . . . . . . . . . . . . . . . . . . . . . . . Fabricator Hacks 45 | . . . . . . 18 . . . . 12 . . . . . 2 . . . . . . . . 6 . . 7 . . . Network Status 6 | . . . . . . 3 . . . . 3 . . . . . . . . . . . . . . . . . . . . . Load Schematic 17 | . . . . . . 7 . . . . 3 . . . . . 1 . . . . . . . . 3 . . 3 . . . Build 22 | . . . . . . 8 . . . . 6 . . . . . 1 . . . . . . . . 3 . . 4 . . . Repair Station Hacks . | . . . . . . . . . . . . . . . . . . . . . . . . . . . . . . . . . Recycling Unit Hacks 3 | . . . . . . 3 . . . . . . . . . . . . . . . . . . . . . . . . . . Retrieve Components 3 | . . . . . . 3 . . . . . . . . . . . . . . . . . . . . . . . . . . Scanalyzer 19 | . . . . . . 3 . . . . 6 . . . . . 10 . . . . . . . . . . . . . . . Insert Component 8 | . . . . . . 1 . . . . 5 . . . . . 2 . . . . . . . . . . . . . . . Analyze 11 | . . . . . . 2 . . . . 1 . . . . . 8 . . . . . . . . . . . . . . . Garrison Access Hacks 4 | . . . . . . 1 . . . . . . . . . . . . . . . 1 . 1 . . 1 . . . . . Unlock Access 3 | . . . . . . . . . . . . . . . . . . . . . . 1 . 1 . . 1 . . . . . Coupler Status 1 | . . . . . . 1 . . . . . . . . . . . . . . . . . . . . . . . . . . Unauthorized Hacks 36 | . 8 . . . . 6 . . . . 6 . . . . . 6 . . . . . . . . 4 . . 6 . . . Terminals 4 | . 4 . . . . . . . . . . . . . . . . . . . . . . . . . . . . . . . Track 3 | . 3 . . . . . . . . . . . . . . . . . . . . . . . . . . . . . . . Operators 1 | . 1 . . . . . . . . . . . . . . . . . . . . . . . . . . . . . . . Fabricators 13 | . . . . . . 3 . . . . 2 . . . . . 3 . . . . . . . . 2 . . 3 . . . Report 2 | . . . . . . 1 . . . . . . . . . . 1 . . . . . . . . . . . . . . . Prioritize 5 | . . . . . . 1 . . . . 1 . . . . . 1 . . . . . . . . 1 . . 1 . . . Siphon 5 | . . . . . . 1 . . . . 1 . . . . . 1 . . . . . . . . 1 . . 1 . . . Overload 1 | . . . . . . . . . . . . . . . . . . . . . . . . . . . . . 1 . . . Repair Stations . | . . . . . . . . . . . . . . . . . . . . . . . . . . . . . . . . . Recycling Units . | . . . . . . . . . . . . . . . . . . . . . . . . . . . . . . . . . Scanalyzers . | . . . . . . . . . . . . . . . . . . . . . . . . . . . . . . . . . Garrison Access 1 | . . . . . . . . . . . 1 . . . . . . . . . . . . . . . . . . . . . Reprogram 1 | . . . . . . . . . . . 1 . . . . . . . . . . . . . . . . . . . . . Data Cores Recovered 4 | . . . . . . 1 . . . . 2 . . . . . . 1 . . . . . . . . . . . . . . Used 2 | . . . . . . 1 . . . . 1 . . . . . . . . . . . . . . . . . . . . . Hacking Detections 10 | . . . . . . 2 . . . . 3 . . . . . 2 . . . . . . . . 2 . . 1 . . . Full Trace Events 1 | . . . . . . 1 . . . . . . . . . . . . . . . . . . . . . . . . . . Feedback Events . | . . . . . . . . . . . . . . . . . . . . . . . . . . . . . . . . . Feedback Blocked . | . . . . . . . . . . . . . . . . . . . . . . . . . . . . . . . . . Robot Schematics Acquired 1 | . . . . . . . . . 1 . . . . . . . . . . . . . . . . . . . . . . . Robots Built . | . . . . . . . . . . . . . . . . . . . . . . . . . . . . . . . . . Matter . | . . . . . . . . . . . . . . . . . . . . . . . . . . . . . . . . . Time . | . . . . . . . . . . . . . . . . . . . . . . . . . . . . . . . . . Total Robot Build Rating . | . . . . . . . . . . . . . . . . . . . . . . . . . . . . . . . . . Part Schematics Acquired 17 | . . . . . . 5 . . 3 . 1 . . . . . 2 . . . . . . . . 6 . . . . . . Parts Built 20 | . . . . . . 7 . . . . 6 . . . . . 1 . . . . . . . . 3 . . 3 . . . Matter 5006 | . . . . . . 1135 . . . . 1503 . . . . . 312 . . . . . . . . 912 . . 1144 . . . Time 810 | . . . . . . 196 . . . . 264 . . . . . 55 . . . . . . . . 161 . . 134 . . . Total Part Build Rating 140 | . . . . . . 39 . . . . 39 . . . . . 9 . . . . . . . . 26 . . 27 . . . Parts Repaired . | . . . . . . . . . . . . . . . . . . . . . . . . . . . . . . . . . Time . | . . . . . . . . . . . . . . . . . . . . . . . . . . . . . . . . . Parts Recycled . | . . . . . . . . . . . . . . . . . . . . . . . . . . . . . . . . . Recycled Matter . | . . . . . . . . . . . . . . . . . . . . . . . . . . . . . . . . . Retrieved Matter . | . . . . . . . . . . . . . . . . . . . . . . . . . . . . . . . . . Retrieved Components 3 | . . . . . . 3 . . . . . . . . . . . . . . . . . . . . . . . . . . Parts Scanalyzed 4 | . . . . . . 1 . . . . 1 . . . . . 2 . . . . . . . . . . . . . . . Part Schematics Acquired 4 | . . . . . . 1 . . . . 1 . . . . . 2 . . . . . . . . . . . . . . . Parts Damaged 1 | . . . . . . . . . . . . . . . . . 1 . . . . . . . . . . . . . . . Bothacking | -11 -10 -10 -10 -9 -8 -7 -7 -7 -7 -6 -6 -6 -6 -6 -6 -5 -5 -5 -5 -5 -5 -4 -4 -4 -4 -3 -3 -3 -2 -2 -1 -1 ------------ Run | Scr Mat Min Exi Min Mat Fac Low Low Dat Pro Fac Low Low Zio Dee Pro Fac Ext Cet Arc Hub Fac Gar Fac Gar Res Tes Gar Res Qua Acc Com Used RIF Installer 3 | . . . . . . . . . . . . . . . . . . . . . . . 1 . 1 . . 1 . . . . Patrol Navigation 1 | . . . . . . . . . . . . . . . . . . . . . . . . . 1 . . . . . . . Structural Interface 1 | . . . . . . . . . . . . . . . . . . . . . . . . . . . . 1 . . . . Robots Hacked 3 | . . . . . . . . . . . . . . 1 . . . . . . . . . . . 2 . . . . . . Non-combat . | . . . . . . . . . . . . . . . . . . . . . . . . . . . . . . . . . Combat 3 | . . . . . . . . . . . . . . 1 . . . . . . . . . . . 2 . . . . . . Robot Hacks Applied 3 | . . . . . . . . . . . . . . 1 . . . . . . . . . . . 2 . . . . . . parse_system 3 | . . . . . . . . . . . . . . 1 . . . . . . . . . . . 2 . . . . . . Relay Couplers Released 3 | . . . . . . . . . . . . . . . . . . . . . . . 1 . 2 . . . . . . . Machine Destruction 3 | . . . . . . . . . . . . . . . . . . . . . . . 1 . 2 . . . . . . . Robots Rewired 2 | . . . . . . . . . 2 . . . . . . . . . . . . . . . . . . . . . . . Allies Hacked . | . . . . . . . . . . . . . . . . . . . . . . . . . . . . . . . . . Hacks Repelled . | . . . . . . . . . . . . . . . . . . . . . . . . . . . . . . . . . Allies | -11 -10 -10 -10 -9 -8 -7 -7 -7 -7 -6 -6 -6 -6 -6 -6 -5 -5 -5 -5 -5 -5 -4 -4 -4 -4 -3 -3 -3 -2 -2 -1 -1 -------- Run | Scr Mat Min Exi Min Mat Fac Low Low Dat Pro Fac Low Low Zio Dee Pro Fac Ext Cet Arc Hub Fac Gar Fac Gar Res Tes Gar Res Qua Acc Com Total Allies 7 | . . . . . . . . 3 2 . 1 . . . . . . 1 . . . . . . . . . . . . . . Largest Group 3 | . . . . . . . . 3 1 . 1 . . . . . . 1 1 1 . . . . . . . . . . . . Highest-Rated Group 156 | . . . . . . . . 93 94 . 32 . . . . . . 156 156 156 . . . . . . . . . . . . Highest-Rated Ally 156 | . . . . . . . . 31 94 . 32 . . . . . . 156 156 156 . . . . . . . . . . . . Total Orders . | . . . . . . . . . . . . . . . . . . . . . . . . . . . . . . . . . Ally Attacks 9 | . . . . . . . . . 8 . . . . . . . . 1 . . . . . . . . . . . . . . Total Damage 221 | . . . . . . . . . 193 . . . . . . . . 28 . . . . . . . . . . . . . . Kills 2 | . . . . . . . . . 1 . . . . . . . . 1 . . . . . . . . . . . . . . Allies Corrupted . | . . . . . . . . . . . . . . . . . . . . . . . . . . . . . . . . . Allies Melted . | . . . . . . . . . . . . . . . . . . . . . . . . . . . . . . . . . Turrets Deployed 1 | . . . . . . . . . . . . . . . . . . . . . . . . . . . 1 . . . . . Intel | -11 -10 -10 -10 -9 -8 -7 -7 -7 -7 -6 -6 -6 -6 -6 -6 -5 -5 -5 -5 -5 -5 -4 -4 -4 -4 -3 -3 -3 -2 -2 -1 -1 ------- Run | Scr Mat Min Exi Min Mat Fac Low Low Dat Pro Fac Low Low Zio Dee Pro Fac Ext Cet Arc Hub Fac Gar Fac Gar Res Tes Gar Res Qua Acc Com Robot Analysis Total 116 | . . . . . . 1 . . 115 . . . . . . . . . . . . . . . . . . . . . . . Derelict Logs Recovered 11 | . . 1 . 2 . . . 2 . 1 . . 2 2 . 1 . . . . . . . . . . . . . . . . Drone Launches . | . . . . . . . . . . . . . . . . . . . . . . . . . . . . . . . . . Drone Recoveries . | . . . . . . . . . . . . . . . . . . . . . . . . . . . . . . . . . Exploration | -11 -10 -10 -10 -9 -8 -7 -7 -7 -7 -6 -6 -6 -6 -6 -6 -5 -5 -5 -5 -5 -5 -4 -4 -4 -4 -3 -3 -3 -2 -2 -1 -1 ------------- Run | Scr Mat Min Exi Min Mat Fac Low Low Dat Pro Fac Low Low Zio Dee Pro Fac Ext Cet Arc Hub Fac Gar Fac Gar Res Tes Gar Res Qua Acc Com Turns Passed 6040 | 42 234 168 449 237 140 677 134 164 101 201 632 88 45 316 143 70 224 125 51 42 155 19 60 56 129 401 143 104 184 107 78 321 Spaces Moved 10979 | 43 370 300 696 457 201 967 283 317 130 408 991 259 179 709 372 160 572 304 110 40 303 68 105 184 241 719 406 115 143 252 300 275 Core 556 | 43 168 . 283 62 . . . . . . . . . . . . . . . . . . . . . . . . . . . . Treads . | . . . . . . . . . . . . . . . . . . . . . . . . . . . . . . . . . Legs . | . . . . . . . . . . . . . . . . . . . . . . . . . . . . . . . . . Wheels . | . . . . . . . . . . . . . . . . . . . . . . . . . . . . . . . . . Hover . | . . . . . . . . . . . . . . . . . . . . . . . . . . . . . . . . . Flight 10423 | . 202 300 413 395 201 967 283 317 130 408 991 259 179 709 372 160 572 304 110 40 303 68 105 184 241 719 406 115 143 252 300 275 Fastest Speed 20 | 50 40 40 40 40 40 40 40 40 40 40 25 25 25 25 25 25 25 25 25 25 25 25 25 25 25 20 20 20 20 20 20 20 Average Speed 30 | 50 44 40 44 41 40 40 40 40 40 40 25 25 25 25 25 25 25 25 25 25 25 25 25 25 25 23 20 20 20 20 20 20 Slowest Speed 50 | 50 50 40 50 50 40 40 40 40 40 40 40 25 25 25 25 25 25 25 25 25 25 25 25 25 25 40 20 20 20 20 20 20 Overloaded Moves . | . . . . . . . . . . . . . . . . . . . . . . . . . . . . . . . . . Propulsion Burnouts . | . . . . . . . . . . . . . . . . . . . . . . . . . . . . . . . . . Robots Hopped 52 | . 1 . 1 2 . 7 . . . . 11 . . . . . 8 . . . . . . 2 . 10 2 . . 2 2 4 Cave-ins Triggered . | . . . . . . . . . . . . . . . . . . . . . . . . . . . . . . . . . Exploration Rate (%) 50 | 4 69 75 91 88 30 30 60 61 76 78 34 60 48 78 81 52 18 59 74 85 59 2 41 9 80 22 44 47 8 52 14 22 Regions Visited 32 Branch Regions 19 Pre-discovered Areas 31 | . . . . . . . . 1 27 . . . . 3 . . . . . . . . . . . . . . . . . . Known Exits Taken 29 | 1 1 1 1 1 1 1 1 1 1 1 1 1 1 1 1 1 1 1 1 1 1 1 . 1 . 1 1 . 1 1 1 . Unknown Exits Taken . | . . . . . . . . . . . . . . . . . . . . . . . . . . . . . . . . . Scrap Searched 4 | . . . . . . . . 2 . 1 . . . 1 . . . . . . . . . . . . . . . . . . Spaces Dug 75 | . . . . . 10 8 . 1 . . 9 . . . . . . . . . . . . . 13 . . 7 . . 27 . Terrain Destroyed 3345 | . . 11 . . 15 12 5 1 . 9 11 6 . 320 95 239 10 186 324 44 630 . . 1 577 . . 156 127 217 63 286 Melee 10 | . . . . . . . . 1 . . 9 . . . . . . . . . . . . . . . . . . . . . Projectile 110 | . . . . . 15 12 5 . . 2 1 6 . 5 4 . 4 1 . 2 14 . . 1 . . . 12 4 8 5 9 AOE 3225 | . . 11 . . . . . . . 7 1 . . 315 91 239 6 185 324 42 616 . . . 577 . . 144 123 209 58 277 Actions | -11 -10 -10 -10 -9 -8 -7 -7 -7 -7 -6 -6 -6 -6 -6 -6 -5 -5 -5 -5 -5 -5 -4 -4 -4 -4 -3 -3 -3 -2 -2 -1 -1 --------- Run | Scr Mat Min Exi Min Mat Fac Low Low Dat Pro Fac Low Low Zio Dee Pro Fac Ext Cet Arc Hub Fac Gar Fac Gar Res Tes Gar Res Qua Acc Com Total 13322 | 58 428 330 799 503 240 1219 300 348 159 434 1340 276 178 828 414 175 658 352 128 74 415 70 151 196 317 965 458 161 273 275 307 493 Wait 1128 | 9 50 16 15 43 11 220 5 16 . 17 312 . . 46 19 . 44 26 9 4 . . 3 . . 137 . . 106 . . 20 Move 10848 | 42 367 299 693 452 200 952 282 315 129 407 969 258 178 708 371 159 556 303 109 39 302 67 104 181 240 698 402 113 142 247 295 269 Hop 47 | . 1 . 1 2 . 7 . . . . 10 . . . . . 7 . . . . . . 1 . 10 2 . . 2 2 2 Pick Up 35 | . 1 3 8 1 5 2 . 2 2 2 3 . . 3 . . . . . . 1 . 1 . . . . . 1 . . . Fast Attach 51 | 5 5 2 4 1 2 4 . 3 1 . 5 . . 5 2 . . . . . . . . . . 5 4 . 3 . . . Attach 38 | . . . 3 1 1 1 3 3 4 . 4 . . 6 1 . 1 . . . . . . . . 2 6 . . . . 2 Detach 30 | . . . 2 . . . 1 3 4 . 3 . . 5 1 . 1 . . . . . . . . 2 7 . . . . 1 Swap 6 | . . 1 . . . . . . . . 1 . . 2 . . 2 . . . . . . . . . . . . . . . Drop 59 | . 1 1 13 3 2 1 . 2 1 . 11 . . 4 2 . 1 . . . . . 1 . . 5 6 . 4 . . 1 Fire 1035 | 1 3 6 31 . 19 32 9 3 17 8 11 18 . 49 18 16 46 23 10 31 112 3 42 14 77 106 31 48 17 26 10 198 Melee 12 | . . . . . . . . 1 1 . 10 . . . . . . . . . . . . . . . . . . . . . Ram 26 | 1 . . 25 . . . . . . . . . . . . . . . . . . . . . . . . . . . . . Kick . | . . . . . . . . . . . . . . . . . . . . . . . . . . . . . . . . . Crush . | . . . . . . . . . . . . . . . . . . . . . . . . . . . . . . . . . Escape Stasis . | . . . . . . . . . . . . . . . . . . . . . . . . . . . . . . . . . Rewire . | . . . . . . . . . . . . . . . . . . . . . . . . . . . . . . . . . Trap . | . . . . . . . . . . . . . . . . . . . . . . . . . . . . . . . . . Miscellaneous 7 | . . 2 4 . . . . . . . 1 . . . . . . . . . . . . . . . . . . . . . Route ------- -11/Scrapyard -10/Materials (discovered 3 exits: *Mat x2 / *Min) -10/Mines (discovered 2 exits: *Mat / *Exi) -10/Exiles (discovered 2 exits: *Min x2) -9/Mines (discovered 2 exits: *Mat x2) -8/Materials (discovered 3 exits: *Fac x3) -7/Factory (discovered 5 exits: *Fac x2 / Sto / *Low x2) -7/Lower Caves -7/Lower Caves -7/Data Miner -6/Proximity Caves -6/Factory (discovered 6 exits: Fac x4 / *Low x2) -6/Lower Caves -6/Lower Caves (discovered 2 exits: Fac / *Zio) -6/Zion (discovered 2 exits: *Dee / *Pro) -6/Deep Caves -5/Proximity Caves -5/Factory (discovered 8 exits: *Fac x4 / *Upp x2 / *Ext x2) -5/Extension (discovered 3 exits: *Fac x2 / *Cet) -5/Cetus (discovered 2 exits: *Fac / *Arc) -5/Archives (discovered 3 exits: *Fac / *Hub x2) -5/Hub_04(d) (discovered 4 exits: *Fac x4) -4/Factory -4/Garrison (discovered 2 exits: *Fac x2) -4/Factory -4/Garrison (discovered 3 exits: *Res x3) -3/Research (discovered 3 exits: *Res / *Tes x2) -3/Testing (discovered 2 exits: Res / Gar) -3/Garrison (discovered 2 exits: *Res x2) -2/Research -2/Quarantine -1/Access -1/Command 0b10 Command History --------- Turn | Location | Event 1 | -11/Scrapyard | Upgraded with Utility slot (x17) 1 | -11/Scrapyard | Upgraded with Weapon slot (x5) 10 | -11/Scrapyard | Identified exit to Materials 10 | -11/Scrapyard | Discovered exit to Materials (range 19) 43 | -11/Scrapyard | Entered Materials 46 | -10/Materials | Identified exit to Mines 68 | -10/Materials | Identified exit to Materials 68 | -10/Materials | Discovered exit to Materials (range 26) 243 | -10/Materials | Discovered exit to Materials (range 4) 277 | -10/Materials | Entered Mines 281 | -10/Mines | Met a Derelict bent on vengeance 325 | -10/Mines | Learned Materials terminal intel 340 | -10/Mines | Received a Rocket Launcher from a helpful Derelict 382 | -10/Mines | Discovered exit to Materials (range 13) 407 | -10/Mines | Identified exit to Exiles 407 | -10/Mines | Discovered exit to Exiles (range 14) 444 | -10/Mines | Deemed a non-threat by the Exiles lab entrance 445 | -10/Mines | Entered Exiles 451 | -10/Exiles | Identified exit to Mines 451 | -10/Exiles | Discovered exit to Mines (range 15) 463 | -10/Exiles | Met 8R-AWN 469 | -10/Exiles | Met EX-HEX 480 | -10/Exiles | Met EX-BIN 486 | -10/Exiles | Aligned with FarCom system 486 | -10/Exiles | Given EX-Vault access code 496 | -10/Exiles | Opened EX-Vault 499 | -10/Exiles | Found Gui. Plasma Cannon 503 | -10/Exiles | Found YOLO Cannon 504 | -10/Exiles | Found AWS/Autocannon 514 | -10/Exiles | Warned to stay clear of 0b10 Research branches 522 | -10/Exiles | Met EX-DEC 538 | -10/Exiles | Discovered exit to Mines (range 14) 566 | -10/Exiles | Visited The Gauntlet 587 | -10/Exiles | Attacked by the Exiles 621 | -10/Exiles | Build established: Wizard-Scout 636 | -10/Exiles | Core integrity fell below 50% 648 | -10/Exiles | Destroyed 7 combat bots 721 | -10/Exiles | Destroyed EX-DEC 723 | -10/Exiles | Found Prototype Energy Gun 727 | -10/Exiles | Found Deploy-a-Sentry 753 | -10/Exiles | Destroyed 8R-AWN 755 | -10/Exiles | Found Prototype Ballistic Gun 755 | -10/Exiles | Identified 8R-AWN's Boregun 764 | -10/Exiles | Destroyed EX-HEX 772 | -10/Exiles | Destroyed EX-BIN 782 | -10/Exiles | Found Prototype Protection 782 | -10/Exiles | Identified 8R-AWN's Armor/TH 784 | -10/Exiles | Found Prototype Protection 784 | -10/Exiles | Identified 8R-AWN's Armor/EX 894 | -10/Exiles | Stole four prototypes: Gui. Plasma Cannon, YOLO Cannon, AWS/Autocannon, Deploy-a-Sentry 894 | -10/Exiles | Entered Mines 896 | -9/Mines | Reached level 2 909 | -9/Mines | Identified exit to Materials 909 | -9/Mines | Discovered exit to Materials (range 23) 915 | -9/Mines | Discovered exit to Materials (range 10) 989 | -9/Mines | Met a Derelict shopkeep closing up shop 1007 | -9/Mines | Reached level 3 1058 | -9/Mines | Learned Materials stockpile data 1131 | -9/Mines | Entered Materials 1133 | -8/Materials | Loaded intel: 12 terminal locations 1133 | -8/Materials | Reached level 4 1133 | -8/Materials | Reached level 5 1133 | -8/Materials | Reached level 6 1144 | -8/Materials | Identified exit to Factory 1241 | -8/Materials | Reached level 7 1271 | -8/Materials | Destroyed 7 combat bots 1271 | -8/Materials | Entered Factory 1273 | -7/Factory | Reached level 8 1273 | -7/Factory | Reached level 9 1305 | -7/Factory | Identified exit to Storage 1305 | -7/Factory | Identified exit to Lower Caves 1382 | -7/Factory | Identified exit to Factory 1382 | -7/Factory | Discovered exit to Factory (range 8) 1538 | -7/Factory | Discovered exit to Factory (range 13) 1551 | -7/Factory | Reached level 10 1595 | -7/Factory | Fabricated Exp. Utility Shielding (x1) 1633 | -7/Factory | Fabricated Exp. Terrain Scanner (x1) 1726 | -7/Factory | Fabricated Exp. Signal Interpreter (x1) 1754 | -7/Factory | Fabricated Greatsword (x2) 1773 | -7/Factory | Local fabrication network quarantined 1814 | -7/Factory | Fabricated Adv. Weapon Cycler (x2) 1948 | -7/Factory | Entered Lower Caves 1982 | -7/Lower Caves | Attracted the attention of an 0b10 checkpoint 1993 | -7/Lower Caves | Reached level 11 2076 | -7/Lower Caves | Identified exit to Lower Caves 2076 | -7/Lower Caves | Discovered exit to Lower Caves (range 13) 2082 | -7/Lower Caves | Entered another Lower Caves area 2094 | -7/Lower Caves | Learned location of 1 exit from Factory 2117 | -7/Lower Caves | A Commander dispatched an escort 2119 | -7/Lower Caves | Learned Extension terminal intel 2119 | -7/Lower Caves | Learned Factory emergency access door positions 2119 | -7/Lower Caves | Learned Research garrison access intel 2202 | -7/Lower Caves | Found Alien Artifact 2210 | -7/Lower Caves | Encountered a Warlord checkpoint 2215 | -7/Lower Caves | Identified exit to Data Miner 2232 | -7/Lower Caves | Spotted 0A-BBK(f) 2234 | -7/Lower Caves | Encountered a Master Thief 2236 | -7/Lower Caves | Destroyed 0A-BBK(f) 2246 | -7/Lower Caves | Entered Data Miner 2248 | -7/Data Miner | Identified exit to Proximity Caves 2248 | -7/Data Miner | Discovered exit to Proximity Caves (range 6) 2252 | -7/Data Miner | Met Data Miner 2263 | -7/Data Miner | Acquired the access code to Warlord's prototype stash 2269 | -7/Data Miner | Received God Mode back door access code from Data Miner 2293 | -7/Data Miner | Reached level 12 2293 | -7/Data Miner | Interfaced with the Data Conduit 2347 | -7/Data Miner | Entered Proximity Caves 2349 | -6/Proximity Caves | Reached level 13 2367 | -6/Proximity Caves | Attracted the attention of an 0b10 checkpoint 2424 | -6/Proximity Caves | Reached level 14 2540 | -6/Proximity Caves | Discovered exit to Factory (range 10) 2545 | -6/Proximity Caves | Learned Factory emergency access door positions 2548 | -6/Proximity Caves | Entered Factory 2549 | -6/Factory | Identified exit to Factory 2550 | -6/Factory | Reached level 15 2551 | -6/Factory | Loaded intel: 263 machine locations 2604 | -6/Factory | Fabricated Exp. Terrain Scanner (x1) 2605 | -6/Factory | Discovered exit to Factory (range 27) 2646 | -6/Factory | Fabricated Exp. Cesium-ion Thruster (x1) 2692 | -6/Factory | Fabricated Exp. ECM Suite (x1) 2740 | -6/Factory | Fabricated Exp. ECM Suite (x1) 2787 | -6/Factory | Fabricated Exp. ECM Suite (x1) 2835 | -6/Factory | Fabricated Exp. ECM Suite (x1) 2868 | -6/Factory | Identified exit to Lower Caves 2952 | -6/Factory | Local fabrication network quarantined 2972 | -6/Factory | Spotted B-75 Beast 2973 | -6/Factory | Intercept squad dispatched 2981 | -6/Factory | Spotted Tracker 2981 | -6/Factory | Destroyed Tracker 2983 | -6/Factory | Found Exp. Phase Shifter 2985 | -6/Factory | Found Prototype Energy Gun 3034 | -6/Factory | Spotted Combat Programmer 3045 | -6/Factory | Destroyed Combat Programmer 3104 | -6/Factory | Identified Core Expander 3104 | -6/Factory | Identified AWS/EX-DEC 3104 | -6/Factory | Identified Immobilizer 3159 | -6/Factory | Reached level 16 3159 | -6/Factory | Destroyed B-75 Beast 3180 | -6/Factory | Entered Lower Caves 3218 | -6/Lower Caves | Encountered a Warlord checkpoint 3241 | -6/Lower Caves | Spotted B-75 Beast 3244 | -6/Lower Caves | Destroyed B-75 Beast 3254 | -6/Lower Caves | Identified exit to Lower Caves 3254 | -6/Lower Caves | Discovered exit to Lower Caves (range 28) 3268 | -6/Lower Caves | Entered another Lower Caves area 3268 | -6/Lower Caves | Discovered exit to Factory (range 15) 3270 | -6/Lower Caves | Reached level 17 3270 | -6/Lower Caves | Learned location of 1 exit from Factory 3304 | -6/Lower Caves | Identified exit to Zion 3304 | -6/Lower Caves | Discovered exit to Zion (range 28) 3309 | -6/Lower Caves | Encountered a Warlord checkpoint 3312 | -6/Lower Caves | Learned location of 1 exit from Factory 3313 | -6/Lower Caves | Entered Zion 3320 | -6/Zion | Identified exit to Proximity Caves 3320 | -6/Zion | Discovered exit to Proximity Caves (range 26) 3340 | -6/Zion | Learned location of 1 exit from Factory 3360 | -6/Zion | Found Spectral Analyzer 3363 | -6/Zion | Found Exp. Target Analyzer 3364 | -6/Zion | Found Exp. Core Analyzer 3378 | -6/Zion | Learned 4 Factory zone layouts 3393 | -6/Zion | Identified exit to Deep Caves 3393 | -6/Zion | Discovered exit to Deep Caves (range 28) 3412 | -6/Zion | Found Prototype Device 3412 | -6/Zion | Identified Mobile Refinery Mk. CCLXVII 3457 | -6/Zion | Attacked by Zionites 3507 | -6/Zion | 99-TNT came to Zion's defense 3518 | -6/Zion | Destroyed 99-TNT 3520 | -6/Zion | Found 99-TNT's Nukerbomber 3530 | -6/Zion | Spotted RD-SWZ(B) 3530 | -6/Zion | Spotted 8F-MDY(B) 3532 | -6/Zion | Destroyed Imprinter 3539 | -6/Zion | Extracted access codes from Imprinter's data core 3555 | -6/Zion | Destroyed 8F-MDY(B) 3625 | -6/Zion | Opened final containment barrier to the Deep Caves 3629 | -6/Zion | Saw the warning signs outside the Deep Caves entrance 3629 | -6/Zion | Entered Deep Caves 3657 | -6/Deep Caves | Z-Facility disabled 3711 | -6/Deep Caves | Found Prototype Protection 3711 | -6/Deep Caves | Identified Zio. Weapon Casing 3731 | -6/Deep Caves | Identified exit to Proximity Caves 3731 | -6/Deep Caves | Discovered exit to Proximity Caves (range 30) 3747 | -6/Deep Caves | Spotted as-58658 3772 | -6/Deep Caves | Entered Proximity Caves 3774 | -5/Proximity Caves | Reached level 18 3774 | -5/Proximity Caves | Learned Factory emergency access door positions 3796 | -5/Proximity Caves | Attracted the attention of an 0b10 checkpoint 3799 | -5/Proximity Caves | Attracted the attention of an 0b10 outpost 3801 | -5/Proximity Caves | Reached level 19 3828 | -5/Proximity Caves | Destroyed 10 combat bots 3835 | -5/Proximity Caves | Discovered exit to Factory (range 30) 3842 | -5/Proximity Caves | Entered Factory 3843 | -5/Factory | Identified exit to Upper Caves 3843 | -5/Factory | Identified exit to Factory 3843 | -5/Factory | Identified exit to Extension 3844 | -5/Factory | Reached level 20 3846 | -5/Factory | Loaded intel: 226 machine locations 3992 | -5/Factory | Reached level 21 3998 | -5/Factory | Intercept squad dispatched 3998 | -5/Factory | Spotted Tracker 3998 | -5/Factory | Destroyed Tracker 4023 | -5/Factory | Spotted Combat Programmer 4030 | -5/Factory | Destroyed Combat Programmer 4054 | -5/Factory | Fabricated Exp. Core Analyzer (x1) 4066 | -5/Factory | Entered Extension 4067 | -5/Extension | Loaded intel: 36 machine locations 4068 | -5/Extension | Loaded intel: 16 terminal locations 4096 | -5/Extension | Rescued A7 4113 | -5/Extension | Spotted B-75 Beast 4115 | -5/Extension | Discovered exit to Factory (range 23) 4116 | -5/Extension | Spotted B-75 Beast 4117 | -5/Extension | Destroyed B-75 Beast 4121 | -5/Extension | Destroyed B-75 Beast 4153 | -5/Extension | Identified exit to Cetus 4153 | -5/Extension | Discovered exit to Cetus (range 26) 4154 | -5/Extension | Discovered exit to Factory (range 26) 4191 | -5/Extension | Entered Cetus 4191 | -5/Cetus | Accompanied by 1 ally 4192 | -5/Cetus | Loaded intel: 24 machine locations 4193 | -5/Cetus | Reached level 22 4193 | -5/Cetus | Spotted Cetus Guard 4193 | -5/Cetus | Spotted Cetus Guard 4193 | -5/Cetus | Spotted Cetus Guard 4193 | -5/Cetus | Spotted Cetus Guard 4196 | -5/Cetus | Acquired a Cetus Manufacturing Module code from A7 4197 | -5/Cetus | Destroyed Cetus Guard 4197 | -5/Cetus | Destroyed Cetus Guard 4199 | -5/Cetus | Destroyed Cetus Guard 4200 | -5/Cetus | Destroyed Cetus Guard 4213 | -5/Cetus | Identified exit to Archives 4213 | -5/Cetus | Discovered exit to Archives (range 24) 4218 | -5/Cetus | Spotted Cetus Guard 4218 | -5/Cetus | Spotted Cetus Guard 4218 | -5/Cetus | Discovered exit to Factory (range 26) 4219 | -5/Cetus | Spotted Cetus Guard 4219 | -5/Cetus | Spotted Cetus Guard 4221 | -5/Cetus | Destroyed Cetus Guard 4223 | -5/Cetus | Destroyed Cetus Guard 4224 | -5/Cetus | Destroyed Cetus Guard 4225 | -5/Cetus | Destroyed Cetus Guard 4242 | -5/Cetus | Entered Archives 4242 | -5/Archives | Accompanied by 1 ally 4243 | -5/Archives | Discovered exit to Factory (range 27) 4243 | -5/Archives | Loaded intel: 8 machine locations 4246 | -5/Archives | Identified exit to Hub_04(d) 4246 | -5/Archives | Discovered exit to Hub_04(d) (range 26) 4278 | -5/Archives | Discovered exit to Hub_04(d) (range 26) 4284 | -5/Archives | Entered Hub_04(d) 4285 | -5/Hub_04(d) | Loaded intel: 101 machine locations 4286 | -5/Hub_04(d) | Discovered exit to Factory (range 24) 4289 | -5/Hub_04(d) | Discovered exit to Factory (range 30) 4306 | -5/Hub_04(d) | Network Hub disabled 4328 | -5/Hub_04(d) | Discovered exit to Factory (range 22) 4328 | -5/Hub_04(d) | Network Hub disabled 4329 | -5/Hub_04(d) | Spotted Lightning 4329 | -5/Hub_04(d) | Spotted Lightning 4330 | -5/Hub_04(d) | Spotted Lightning 4336 | -5/Hub_04(d) | Destroyed Lightning 4339 | -5/Hub_04(d) | Reached level 23 4339 | -5/Hub_04(d) | Destroyed Lightning 4347 | -5/Hub_04(d) | Destroyed Lightning 4370 | -5/Hub_04(d) | Found Prototype Energy Cannon 4373 | -5/Hub_04(d) | Discovered exit to Factory (range 30) 4398 | -5/Hub_04(d) | Network Hub disabled 4409 | -5/Hub_04(d) | Spotted Lightning 4409 | -5/Hub_04(d) | Spotted Lightning 4410 | -5/Hub_04(d) | Destroyed Lightning 4414 | -5/Hub_04(d) | Destroyed Lightning 4419 | -5/Hub_04(d) | Spotted Lightning 4420 | -5/Hub_04(d) | Destroyed Lightning 4425 | -5/Hub_04(d) | Network Hub disabled 4439 | -5/Hub_04(d) | Entered Factory 4441 | -4/Factory | Loaded intel: 259 machine locations 4441 | -4/Factory | Reached level 24 4442 | -4/Factory | Garrison activated, responded to threat 4452 | -4/Factory | Destroyed 26 combat bots 4458 | -4/Factory | Identified exit to Garrison 4458 | -4/Factory | Entered Garrison 4459 | -4/Garrison | Loaded intel: 22 machine locations 4460 | -4/Garrison | Installed Relay Interface Framework 4467 | -4/Garrison | Triggered checkpoint 4473 | -4/Garrison | Garrison Relay disabled 4482 | -4/Garrison | Spotted B-86 Titan 4498 | -4/Garrison | Destroyed B-86 Titan 4510 | -4/Garrison | Identified exit to Factory 4510 | -4/Garrison | Discovered exit to Factory (range 30) 4512 | -4/Garrison | Triggered checkpoint 4513 | -4/Garrison | Discovered exit to Factory (range 30) 4518 | -4/Garrison | Entered Factory 4519 | -4/Factory | Loaded intel: 259 machine locations 4524 | -4/Factory | Destroyed 11 combat bots 4567 | -4/Factory | Reached level 25 4574 | -4/Factory | Identified exit to Garrison 4574 | -4/Factory | Entered Garrison 4575 | -4/Garrison | Loaded intel: 26 machine locations 4582 | -4/Garrison | Phase Generator disabled 4586 | -4/Garrison | Spotted B-86 Titan 4586 | -4/Garrison | Spotted B-86 Titan 4593 | -4/Garrison | Spotted B-86 Titan 4594 | -4/Garrison | Triggered checkpoint 4602 | -4/Garrison | Destroyed B-86 Titan 4616 | -4/Garrison | Identified exit to Research 4616 | -4/Garrison | Discovered exit to Research (range 30) 4619 | -4/Garrison | Discovered exit to Research (range 27) 4647 | -4/Garrison | Triggered checkpoint 4654 | -4/Garrison | Garrison Relay disabled 4660 | -4/Garrison | Triggered checkpoint 4661 | -4/Garrison | Triggered checkpoint 4677 | -4/Garrison | Triggered checkpoint 4696 | -4/Garrison | Discovered exit to Research (range 18) 4699 | -4/Garrison | Destroyed 22 combat bots 4702 | -4/Garrison | Expanded RIF knowledge: Patrol Navigation 4703 | -4/Garrison | Entered Research 4704 | -3/Research | Loaded intel: 84 machine locations 4705 | -3/Research | Loaded intel: 3 garrison access locations 4705 | -3/Research | Reached level 26 4705 | -3/Research | Reached level 27 4725 | -3/Research | Identified exit to Testing 4770 | -3/Research | Identified exit to Research 4770 | -3/Research | Discovered exit to Research (range 28) 4864 | -3/Research | Destroyed 14 combat bots 4874 | -3/Research | Intercept squad dispatched 4886 | -3/Research | Spotted Tracker 4887 | -3/Research | Reached level 28 4887 | -3/Research | Destroyed Tracker 4903 | -3/Research | Revision forces began assault on 0b10 4922 | -3/Research | Spotted Combat Programmer 4932 | -3/Research | Fabricated Exp. Armor Integrity Analyzer? 4932 | -3/Research | Destroyed Combat Programmer 4988 | -3/Research | Fabricated Adv. Kinecellerator (x1) 5010 | -3/Research | Local fabrication network quarantined 5040 | -3/Research | Met up with Revision 17++ 5043 | -3/Research | Fabricated Exp. Q-thruster (x1) 5049 | -3/Research | Identified EMDS 5063 | -3/Research | Destroyed Revision 17++ 5066 | -3/Research | High security lockdown imminent 5104 | -3/Research | Entered Testing 5105 | -3/Testing | Loaded intel: 78 machine locations 5116 | -3/Testing | Found Prototype Energy Cannon 5116 | -3/Testing | Identified Disintegrator 5130 | -3/Testing | Found Prototype Energy Gun 5130 | -3/Testing | Identified Hyp. EM Gauss Rifle 5184 | -3/Testing | DAS Turret deployed 5199 | -3/Testing | Found Prototype Energy Cannon 5199 | -3/Testing | Identified Imp. Potential Cannon 5208 | -3/Testing | Found Prototype Device 5208 | -3/Testing | Identified AEGIS Remote Shield 5236 | -3/Testing | Reached level 29 5247 | -3/Testing | Identified exit to Garrison 5247 | -3/Testing | Entered Garrison 5248 | -3/Garrison | Loaded intel: 19 machine locations 5262 | -3/Garrison | Phase Generator disabled 5307 | -3/Garrison | Triggered checkpoint 5320 | -3/Garrison | Triggered checkpoint 5329 | -3/Garrison | Triggered checkpoint 5343 | -3/Garrison | Discovered exit to Research (range 30) 5343 | -3/Garrison | Discovered exit to Research (range 29) 5350 | -3/Garrison | Expanded RIF knowledge: Structural Interface 5351 | -3/Garrison | Entered Research 5352 | -2/Research | Loaded intel: 102 machine locations 5353 | -2/Research | Reached level 30 5374 | -2/Research | Reached level 31 5403 | -2/Research | Destroyed 38 combat bots 5427 | -2/Research | Fabricated Adv. Particle Accelerator (x1) 5451 | -2/Research | Fabricated Adv. Reaction Control System (x1) 5492 | -2/Research | Fabricated Exp. Weapon Cycler (x1) 5512 | -2/Research | Identified exit to Quarantine 5512 | -2/Research | Discovered exit to Quarantine (range 20) 5535 | -2/Research | Entered Quarantine 5536 | -2/Quarantine | Loaded intel: 64 machine locations 5538 | -2/Quarantine | Identified exit to Access 5580 | -2/Quarantine | Met incapacitated Sigix Warrior 5580 | -2/Quarantine | Lockdown squad dispatched 5580 | -2/Quarantine | Reached level 32 5598 | -2/Quarantine | Spotted Lightning 5599 | -2/Quarantine | Spotted Lightning 5599 | -2/Quarantine | Spotted Lightning 5602 | -2/Quarantine | Destroyed Lightning 5602 | -2/Quarantine | Destroyed Lightning 5605 | -2/Quarantine | Destroyed Lightning 5636 | -2/Quarantine | Destroyed 9 combat bots 5642 | -2/Quarantine | Entered Access 5643 | -1/Access | Loaded intel: 113 machine locations 5644 | -1/Access | Reached level 33 5708 | -1/Access | Identified exit to Command 5708 | -1/Access | Discovered exit to Command (range 17) 5720 | -1/Access | Entered Command 5721 | -1/Command | Loaded intel: 55 machine locations 5722 | -1/Command | Reached level 34 5755 | -1/Command | Reached level 35 5811 | -1/Command | High security lockdown imminent 5814 | -1/Command | Reached level 36 5868 | -1/Command | Reached level 37 5891 | -1/Command | High security lockdown engaged 5952 | -1/Command | Spotted M Guard 5952 | -1/Command | Spotted M Guard 5952 | -1/Command | Spotted Combat Programmer 5952 | -1/Command | Spotted Combat Programmer 5957 | -1/Command | Destroyed M Guard 5961 | -1/Command | Destroyed M Guard 5961 | -1/Command | Destroyed Combat Programmer 5965 | -1/Command | Destroyed Combat Programmer 5965 | -1/Command | Destroyed all MAIN.C guards 5966 | -1/Command | Spotted Striker 5970 | -1/Command | Destroyed Striker 5990 | -1/Command | Met MAIN.C 5990 | -1/Command | Reached level 38 5998 | -1/Command | Destroyed 214 combat bots 6041 | -1/Command | Interfaced with 0b10 Conduit 6041 | *** | Assimilated 0b10! Last Messages --------------- 06004_ Warlord KY-Z71 suffers critical hit. 06004_ Destroyed Quantum Rifle. 06004_ C-30 ARC bursts open, deploying its payload. 06004_ G-73 Enforcer unfolds itself. 06004_ B-74 Champion unfolds itself. 06004_ G-73 Enforcer unfolds itself. 06004_ M-36 Artificer unfolds itself. 06005_ The unstable cave ceiling collapses. 06005_ Quantum Rifle crushed. 06006_ G-73 Enforcer suffers critical hit. 06006_ G-73 Enforcer destroyed. 06007_ B-74 Champion suffers critical hit. 06007_ Destroyed Med. Treads. 06009_ B-74 Champion destroyed. 06010_ G-73 Enforcer destroyed. 06011_ ALERT: Assault forces dispatched. 06013_ G-73 Enforcer suffers critical hit. 06013_ G-73 Enforcer destroyed. 06041_ Interfacing with system... 06041_ Overriding active MAIN.C lock. Map ----- +----------------------------------------------------+ | ################################################## | | #### ############################################# | | #### ############################################# | | #### ############################################# | | #### ############################################# | | #### ############################################# | | #### ############################################# | | ## ############################################# | | # ############################################# | | ################################################ | | ################################################ | | ################################################ | | ################################################ | | ################################################ | | ################################################ | | ################""""""" """" ############# | | ################"" "" ############# | | ################""""" "" ############# | | ################""""""""""" + | | ################" " """ + | | ###### #####"" """""" + | | " #####"" """""" ############# | | "T ##### " """""" ############# | | ##### " "" ############# | | ###+## ##### " " ""############# | | ## ######"""""""""@ """""""############# | | ## #####"" """""""""############# | | ## ##### """""""""""############# | | ## ##### " " " " ############# | | ####### ##### " " " " ############# | | """ " " " """" " ############# | | """ """ " " """" ############# | | """ " " " " ############# | | ################ """""""""" " ############# | | ################ " """ " """"""""############# | | ################ """ " " " ############# | | ################################################## | | ################################################## | | ################################################## | | ################################################## | | ################################################## | | ################################################## | | ################################################## | | ################################################## | | ################################################## | | ################################################## | | ################################################## | | ################################################## | | ################################################## | | ################################################## | +----------------------------------------------------+ Best States ------------- Heat Dissipation 583 Energy Generation 1000 Energy Capacity 1000 Matter Stores 300 Matter Capacity 300 Sight Range 26 Robot Scan Range 50 Terrain Scan Range 30 Terrain Scan Density 5010 ECM Strength 20 Armor Coverage 2200 Resistance: KI 55 Resistance: TH 100 Resistance: EX 100 Resistance: EM 35 Resistance: I 35 Resistance: S 35 Resistance: P 35 Utility Shielding 90 Weapon Shielding 100 Weapon Cycling 30 Phase Shifting 20 Evasion (%) 100 Launcher Accuracy 40 Target Analysis 12 Core Analysis 15 Armor Integrity Analysis 90 Particle Charging 50 Kinecelleration 50 Salvage Targeting 4 Offensive Hacking 585 Defensive Hacking 180 Item Schematics ----------------- Exp. Terrain Scanner | -7/Factory | Hacked Exp. Signal Interpreter | -7/Factory | Hacked Exp. Utility Shielding | -7/Factory | Hacked Greatsword | -7/Factory | Hacked Adv. Weapon Cycler | -7/Factory | Scanalyzed Exp. Cesium-ion Thruster | -7/Data Miner | Free Exp. ECM Suite | -7/Data Miner | Free Kinetic Spear | -7/Data Miner | Free Exp. Phase Shifter | -6/Factory | Scanalyzed Exp. Core Analyzer | -5/Factory | Scanalyzed Exp. Target Analyzer | -5/Factory | Scanalyzed Exp. Armor Integrity Analyzer | -3/Research | Hacked Adv. Particle Accelerator | -3/Research | Hacked Adv. Kinecellerator | -3/Research | Hacked Exp. Weapon Cycler | -3/Research | Hacked Adv. Reaction Control System | -3/Research | Hacked Exp. Q-thruster | -3/Research | Hacked Robot Schematics ------------------ H-66 Slayer | -7/Data Miner | Free Fabricated ------------ Exp. Utility Shielding | x1 | -7/Factory Exp. Terrain Scanner | x1 | -7/Factory Exp. Signal Interpreter | x1 | -7/Factory Greatsword | x2 | -7/Factory Adv. Weapon Cycler | x2 | -7/Factory Exp. Terrain Scanner | x1 | -6/Factory Exp. Cesium-ion Thruster | x1 | -6/Factory Exp. ECM Suite | x1 | -6/Factory Exp. ECM Suite | x1 | -6/Factory Exp. ECM Suite | x1 | -6/Factory Exp. ECM Suite | x1 | -6/Factory Exp. Core Analyzer | x1 | -5/Factory Exp. Armor Integrity Analyzer | x1 | -3/Research Adv. Kinecellerator | x1 | -3/Research Exp. Q-thruster | x1 | -3/Research Adv. Particle Accelerator | x1 | -2/Research Adv. Reaction Control System | x1 | -2/Research Exp. Weapon Cycler | x1 | -2/Research Alien Tech Used ----------------- None Achievements -------------- None Challenges ------------ None RPGLIKE | -11 -10 -10 -10 -9 -8 -7 -7 -7 -7 -6 -6 -6 -6 -6 -6 -5 -5 -5 -5 -5 -5 -4 -4 -4 -4 -3 -3 -3 -2 -2 -1 -1 --------- Run | Scr Mat Min Exi Min Mat Fac Low Low Dat Pro Fac Low Low Zio Dee Pro Fac Ext Cet Arc Hub Fac Gar Fac Gar Res Tes Gar Res Qua Acc Com Levels Raised 37 | . . . . 2 4 3 1 . 1 2 2 . 1 . . 2 2 . 1 . 1 1 . 1 . 3 1 . 2 1 1 5 XP Earned 61652 | 6000 70 750 350 2559 5588 4599 1150 650 2187 1899 2954 1118 569 349 699 2150 2721 1077 540 302 1240 1144 1136 200 1321 3842 877 952 2578 1509 2102 6470 XP Spent -284919 | -316144 . . . . . . . . . 25 . . . . . . 31200 . . . . . . . . . . . . . . . Upgrades 872 | 868 . . . . . . . . . 1 . . . . . . 3 . . . . . . . . . . . . . . . Utility Slot 17 | 17 . . . . . . . . . . . . . . . . . . . . . . . . . . . . . . . . Weapon Slot 5 | 5 . . . . . . . . . . . . . . . . . . . . . . . . . . . . . . . . Core Integrity 1 | . . . . . . . . . . 1 . . . . . . . . . . . . . . . . . . . . . . Heat Dissipation 93 | 93 . . . . . . . . . . . . . . . . . . . . . . . . . . . . . . . . Energy Generation 199 | 199 . . . . . . . . . . . . . . . . . . . . . . . . . . . . . . . . Energy Storage 18 | 18 . . . . . . . . . . . . . . . . . . . . . . . . . . . . . . . . Mass Support 100 | 100 . . . . . . . . . . . . . . . . . . . . . . . . . . . . . . . . Inventory Capacity 30 | 30 . . . . . . . . . . . . . . . . . . . . . . . . . . . . . . . . Sight Range 10 | 10 . . . . . . . . . . . . . . . . . . . . . . . . . . . . . . . . Sensor Range 25 | 25 . . . . . . . . . . . . . . . . . . . . . . . . . . . . . . . . Terrain Scan Density 50 | 50 . . . . . . . . . . . . . . . . . . . . . . . . . . . . . . . . Ranged Accuracy 131 | 131 . . . . . . . . . . . . . . . . . . . . . . . . . . . . . . . . Melee Accuracy 20 | 20 . . . . . . . . . . . . . . . . . . . . . . . . . . . . . . . . Hack Attack % 113 | 113 . . . . . . . . . . . . . . . . . . . . . . . . . . . . . . . . Hack Defense % 36 | 33 . . . . . . . . . . . . . . . . 3 . . . . . . . . . . . . . . . KI Resistance % 4 | 4 . . . . . . . . . . . . . . . . . . . . . . . . . . . . . . . . TH Resistance % 4 | 4 . . . . . . . . . . . . . . . . . . . . . . . . . . . . . . . . EX Resistance % 4 | 4 . . . . . . . . . . . . . . . . . . . . . . . . . . . . . . . . KI Damage % 4 | 4 . . . . . . . . . . . . . . . . . . . . . . . . . . . . . . . . TH Damage % 4 | 4 . . . . . . . . . . . . . . . . . . . . . . . . . . . . . . . . EX Damage % 4 | 4 . . . . . . . . . . . . . . . . . . . . . . . . . . . . . . . . Protomatter Created 9324 | . . 43 144 18 208 72 71 16 85 104 . 84 22 54 116 264 483 182 25 25 548 . 237 61 423 614 83 525 510 235 66 4006 Integrity Restored 135 | . . 34 93 . . . . . . . 8 . . . . . . . . . . . . . . . . . . . . . Core 135 | . . 34 93 . . . . . . . 8 . . . . . . . . . . . . . . . . . . . . . Protomatter Decayed 5124 | . . . 49 113 5 72 28 . . . 124 84 . . 116 36 422 126 . . 389 . 133 . 176 1524 83 143 339 . . 1162 Game ------ Seed GhostReactiveWeb Manual? 0 Play Time 03:21:26 Cumulative 226.6 hours Start 2019.12.21 @ 18:17:38 End 2019.12.22 @ 14:22:30 Sessions 1 Manual Loads 0 Difficulty Explorer Special Mode Winter2019/RPGLIKE Game No. 175 Rogue 4 Adventurer 0 Explorer 171 Win Type 4 Total 32 Types 12/9/3/1/4/1/2 Lore% 92 Gallery% 92 Achievement% 90 Wizard Run 0 Options --------- ASCII 0 Keyboard 0 Movement Mouse Keybinds 0 Fullscreen 0 Font 16/Dina Map View 76x50 Tactical HUD 1 Map Filters NONE Filters NONE Steam 1 RUN: 14c236ce-aa0a-4f7a-9bca-1b2bddb3d55e